[Event "Gibraltar Masters 18th"]
[Site "Gibraltar"]
[Date "2020.01.25"]
[Round "5.4"]
[White "Esipenko, Andrey"]
[Black "Basso, Pier Luigi"]
[Result "1-0"]
[ECO "D11"]
[WhiteElo "2654"]
[BlackElo "2600"]
[PlyCount "125"]
[EventDate "2020.01.21"]
[EventType "swiss"]
[EventRounds "10"]
[EventCountry "GGB"]
[SourceTitle "BritBase"]
[Source "John Saunders"]
[SourceDate "2021.06.05"]
[SourceVersion "1"]
[SourceVersionDate "2021.06.05"]
[SourceQuality "1"]
[TimeControl "40/100:0"]
[WhiteClock "0:19:17"]
[BlackClock "0:02:20"]

1. d4 {[%emt 0:00:00]} d5 {[%emt 0:00:00]} 2. c4 {[%emt 0:00:00]} c6 {[%emt 0:
00:00]} 3. Nf3 {[%emt 0:00:00]} Nf6 {[%emt 0:00:00]} 4. e3 {[%emt 0:00:00]} Bg4
{[%emt 0:00:00]} 5. Qb3 {[%emt 0:00:00]} Qb6 {[%emt 0:00:00]} 6. Ne5 {[%emt 0:
00:00]} Bf5 {[%emt 0:00:00]} 7. cxd5 {[%emt 0:00:00]} Qxb3 {[%emt 0:00:00]} 8.
axb3 {[%emt 0:00:00]} Nxd5 {[%emt 0:00:00]} 9. Bd3 {[%emt 0:00:00]} Bxd3 {
[%emt 0:00:00]} 10. Nxd3 {[%emt 0:00:00]} e6 {[%emt 0:00:00]} 11. Bd2 {[%emt 0:
00:00]} Na6 {[%emt 0:00:00]} 12. Ke2 {[%emt 0:00:00]} Ndb4 {[%emt 0:00:00]} 13.
Nxb4 {[%emt 0:00:00]} Nxb4 {[%emt 0:00:00]} 14. Na3 {[%emt 0:00:00]} a6 {
[%emt 0:00:00]} 15. Nc4 {[%emt 0:00:00]} f6 {[%emt 0:00:00]} 16. g4 {[%emt 0:
00:00]} Be7 {[%emt 0:00:00]} 17. h4 {[%emt 0:00:00]} Rd8 {[%emt 0:00:00]} 18.
g5 {[%emt 0:00:00]} f5 {[%emt 0:00:00]} 19. Rhg1 {[%emt 0:00:00]} O-O {[%emt 0:
00:00]} 20. Ra4 {[%emt 0:00:00]} Nd5 {[%emt 0:00:00]} 21. Ne5 {[%emt 0:00:00]}
Bd6 {[%emt 0:00:00]} 22. Nd3 {[%emt 0:00:00]} Rfe8 {[%emt 0:00:00]} 23. f4 {
[%emt 0:00:00]} Rc8 {[%emt 0:00:00]} 24. h5 {[%emt 0:00:00]} Nb6 {[%emt 0:00:
00]} 25. Raa1 {[%emt 0:00:00]} Nd5 {[%emt 0:00:00]} 26. Kf3 {[%emt 0:00:00]}
Kf8 {[%emt 0:00:00]} 27. Rae1 {[%emt 0:00:00]} Ke7 {[%emt 0:00:00]} 28. e4 {
[%emt 0:00:00]} fxe4+ {[%emt 0:00:00]} 29. Rxe4 {[%emt 0:00:00]} Kd7 {[%emt 0:
00:00]} 30. Nc5+ {[%emt 0:00:00]} Bxc5 {[%emt 0:00:00]} 31. dxc5 {[%emt 0:00:
00]} Rf8 {[%emt 0:00:00]} 32. Rge1 {[%emt 0:00:00]} Rce8 {[%emt 0:00:00]} 33.
Bc3 {[%emt 0:00:00]} Re7 {[%emt 0:00:00]} 34. Be5 {[%emt 0:00:00]} Rf5 {
[%emt 0:00:00]} 35. Kg4 {[%emt 0:00:00]} Rff7 {[%emt 0:00:00]} 36. R1e2 {
[%emt 0:00:00]} Rf5 {[%emt 0:00:00]} 37. Kg3 {[%emt 0:00:00]} Rff7 {[%emt 0:00:
00]} 38. g6 {[%emt 0:00:00]} hxg6 {[%emt 0:00:00]} 39. hxg6 {[%emt 0:00:00]}
Rf5 {[%emt 0:00:00]} 40. Rh2 {[%emt 0:00:00]} Nf6 {[%emt 0:01:09]} 41. Re1 {
[%emt 0:02:36]} Nh5+ {[%emt 0:00:00]} 42. Kg4 {[%emt 0:00:00]} Nf6+ {[%emt 0:
00:00]} 43. Kf3 {[%emt 0:00:00]} Re8 {[%emt 0:00:00]} 44. Reh1 {[%emt 0:00:00]}
Rf8 {[%emt 0:00:00]} 45. Rh8 {[%emt 0:00:00]} Ne8 {[%emt 0:00:00]} 46. b4 {
[%emt 0:00:00]} Ke7 {[%emt 0:00:00]} 47. R1h7 {[%emt 0:00:00]} Rxh8 {[%emt 0:
00:00]} 48. Rxh8 {[%emt 0:00:00]} Kd7 {[%emt 0:00:00]} 49. Rh7 {[%emt 0:00:00]}
Ke7 {[%emt 0:00:00]} 50. Bxg7 {[%emt 0:00:00]} Nxg7 {[%emt 0:00:00]} 51. Rxg7+
{[%emt 0:00:00]} Kf6 {[%emt 0:00:00]} 52. Rxb7 {[%emt 0:00:00]} Kxg6 {[%emt 0:
00:00]} 53. Rb6 {[%emt 0:00:00]} e5 {[%emt 0:00:00]} 54. Rxc6+ {[%emt 0:00:00]}
Kf7 {[%emt 0:00:00]} 55. Ke4 {[%emt 0:00:00]} Rxf4+ {[%emt 0:00:00]} 56. Kxe5 {
[%emt 0:00:00]} Rxb4 {[%emt 0:00:00]} 57. Rb6 {[%emt 0:00:00]} Rh4 {[%emt 0:00:
00]} 58. Kd6 {[%emt 0:00:00]} Rd4+ {[%emt 0:00:00]} 59. Kc7 {[%emt 0:00:00]} a5
{[%emt 0:00:00]} 60. c6 {[%emt 0:00:00]} Ke7 {[%emt 0:00:00]} 61. Rb5 {[%emt 0:
00:00]} Rc4 {[%emt 0:00:00]} 62. Rxa5 {[%emt 0:00:00]} Rb4 {[%emt 0:00:00]} 63.
Re5+ {[%emt 0:00:00]} 1-0

[Event "Gibraltar Masters 18th"]
[Site "Gibraltar"]
[Date "2020.01.25"]
[Round "5.5"]
[White "Werle, Jan"]
[Black "Narayanan, SL."]
[Result "1/2-1/2"]
[ECO "E08"]
[WhiteElo "2545"]
[BlackElo "2637"]
[PlyCount "78"]
[EventDate "2020.01.21"]
[EventType "swiss"]
[EventRounds "10"]
[EventCountry "GGB"]
[SourceTitle "BritBase"]
[Source "John Saunders"]
[SourceDate "2021.06.05"]
[SourceVersion "1"]
[SourceVersionDate "2021.06.05"]
[SourceQuality "1"]
[TimeControl "40/100:0"]
[WhiteClock "0:06:16"]
[BlackClock "0:05:21"]

1. d4 {[%emt 0:00:00]} Nf6 {[%emt 0:00:00]} 2. c4 {[%emt 0:00:00]} e6 {[%emt 0:
00:00]} 3. Nf3 {[%emt 0:00:00]} d5 {[%emt 0:00:00]} 4. g3 {[%emt 0:00:00]} Bb4+
{[%emt 0:00:00]} 5. Bd2 {[%emt 0:00:00]} Be7 {[%emt 0:00:00]} 6. Bg2 {[%emt 0:
00:00]} O-O {[%emt 0:00:00]} 7. O-O {[%emt 0:00:00]} c6 {[%emt 0:00:00]} 8. Qc2
{[%emt 0:00:00]} Nbd7 {[%emt 0:00:00]} 9. Rd1 {[%emt 0:00:00]} b6 {[%emt 0:00:
00]} 10. Bf4 {[%emt 0:00:00]} a5 {[%emt 0:00:00]} 11. Nbd2 {[%emt 0:00:00]} Nh5
{[%emt 0:00:00]} 12. e3 {[%emt 0:00:00]} Bb7 {[%emt 0:00:00]} 13. cxd5 {
[%emt 0:00:00]} exd5 {[%emt 0:00:00]} 14. h4 {[%emt 0:00:00]} Nxf4 {[%emt 0:00:
00]} 15. exf4 {[%emt 0:00:00]} Nf6 {[%emt 0:00:00]} 16. Ne5 {[%emt 0:00:00]}
Qc7 {[%emt 0:00:00]} 17. Rac1 {[%emt 0:00:00]} c5 {[%emt 0:00:00]} 18. Nf1 {
[%emt 0:00:00]} a4 {[%emt 0:00:00]} 19. a3 {[%emt 0:00:00]} Rfd8 {[%emt 0:00:
00]} 20. Ne3 {[%emt 0:00:00]} Qb8 {[%emt 0:00:00]} 21. h5 {[%emt 0:00:00]} cxd4
{[%emt 0:00:00]} 22. Nf5 {[%emt 0:00:00]} Bc5 {[%emt 0:00:00]} 23. h6 {[%emt 0:
00:00]} g6 {[%emt 0:00:00]} 24. Nxd4 {[%emt 0:00:00]} Qd6 {[%emt 0:00:00]} 25.
Nb5 {[%emt 0:00:00]} Qf8 {[%emt 0:00:00]} 26. Nc3 {[%emt 0:00:00]} Rac8 {
[%emt 0:00:00]} 27. Qxa4 {[%emt 0:00:00]} Qxh6 {[%emt 0:00:00]} 28. Qb3 {
[%emt 0:00:00]} Re8 {[%emt 0:00:00]} 29. Nd3 {[%emt 0:00:00]} Ba6 {[%emt 0:00:
00]} 30. Nxc5 {[%emt 0:00:00]} bxc5 {[%emt 0:00:00]} 31. Bf3 {[%emt 0:00:00]}
d4 {[%emt 0:00:00]} 32. Nd5 {[%emt 0:00:00]} Nxd5 {[%emt 0:00:00]} 33. Qxd5 {
[%emt 0:00:00]} Qf8 {[%emt 0:00:00]} 34. Kg2 {[%emt 0:00:00]} Qe7 {[%emt 0:00:
00]} 35. b4 {[%emt 0:00:00]} cxb4 {[%emt 0:00:00]} 36. Rxc8 {[%emt 0:00:00]}
Rxc8 {[%emt 0:00:00]} 37. axb4 {[%emt 0:00:00]} Qxb4 {[%emt 0:00:00]} 38. Qxd4
{[%emt 0:00:00]} Qxd4 {[%emt 0:00:00]} 39. Rxd4 {[%emt 0:00:00]} Rc7 {[%emt 0:
00:00]} 1/2-1/2

[Event "Gibraltar Masters 18th"]
[Site "Gibraltar"]
[Date "2020.01.25"]
[Round "5.7"]
[White "Peralta, Fernando"]
[Black "Mamedyarov, Shakhriyar"]
[Result "1/2-1/2"]
[ECO "D87"]
[WhiteElo "2574"]
[BlackElo "2770"]
[PlyCount "42"]
[EventDate "2020.01.21"]
[EventType "swiss"]
[EventRounds "10"]
[EventCountry "GGB"]
[SourceTitle "BritBase"]
[Source "John Saunders"]
[SourceDate "2021.06.05"]
[SourceVersion "1"]
[SourceVersionDate "2021.06.05"]
[SourceQuality "1"]
[TimeControl "40/100:0"]
[WhiteClock "0:36:17"]
[BlackClock "1:41:45"]

1. d4 {[%emt 0:00:00]} Nf6 {[%emt 0:00:00]} 2. c4 {[%emt 0:00:00]} g6 {[%emt 0:
00:00]} 3. Nc3 {[%emt 0:00:00]} d5 {[%emt 0:00:00]} 4. cxd5 {[%emt 0:00:00]}
Nxd5 {[%emt 0:00:00]} 5. e4 {[%emt 0:00:00]} Nxc3 {[%emt 0:00:00]} 6. bxc3 {
[%emt 0:00:00]} Bg7 {[%emt 0:00:00]} 7. Bc4 {[%emt 0:00:00]} c5 {[%emt 0:00:00]
} 8. Ne2 {[%emt 0:00:00]} Nc6 {[%emt 0:00:00]} 9. Be3 {[%emt 0:00:00]} O-O {
[%emt 0:00:00]} 10. O-O {[%emt 0:00:00]} Na5 {[%emt 0:00:00]} 11. Bd3 {[%emt 0:
00:00]} b6 {[%emt 0:00:00]} 12. e5 {[%emt 0:00:00]} Bb7 {[%emt 0:00:00]} 13.
Nf4 {[%emt 0:00:00]} f6 {[%emt 0:00:00]} 14. Qg4 {[%emt 0:00:00]} fxe5 {
[%emt 0:00:00]} 15. Nxg6 {[%emt 0:00:00]} hxg6 {[%emt 0:00:00]} 16. Qe6+ {
[%emt 0:00:00]} Rf7 {[%emt 0:00:00]} 17. Bxg6 {[%emt 0:00:00]} Qe8 {[%emt 0:00:
00]} 18. dxe5 {[%emt 0:00:00]} Bc8 {[%emt 0:00:00]} 19. Qd5 {[%emt 0:00:00]}
Bb7 {[%emt 0:00:00]} 20. Qe6 {[%emt 0:00:00]} Bc8 {[%emt 0:00:00]} 21. Qd5 {
[%emt 0:00:00]} Bb7 {[%emt 0:00:00]} 1/2-1/2

[Event "Gibraltar Masters 18th"]
[Site "Gibraltar"]
[Date "2020.01.25"]
[Round "5.8"]
[White "Vachier-Lagrave, Maxime"]
[Black "Sanal, Vahap"]
[Result "1/2-1/2"]
[ECO "C77"]
[WhiteElo "2770"]
[BlackElo "2569"]
[PlyCount "94"]
[EventDate "2020.01.21"]
[EventType "swiss"]
[EventRounds "10"]
[EventCountry "GGB"]
[SourceTitle "BritBase"]
[Source "John Saunders"]
[SourceDate "2021.06.05"]
[SourceVersion "1"]
[SourceVersionDate "2021.06.05"]
[SourceQuality "1"]
[TimeControl "40/100:0"]
[WhiteClock "0:31:54"]
[BlackClock "0:00:49"]

1. e4 {[%emt 0:00:00]} e5 {[%emt 0:00:00]} 2. Nf3 {[%emt 0:00:00]} Nc6 {
[%emt 0:00:00]} 3. Bb5 {[%emt 0:00:00]} a6 {[%emt 0:00:00]} 4. Ba4 {[%emt 0:00:
00]} Nf6 {[%emt 0:00:00]} 5. Nc3 {[%emt 0:00:00]} b5 {[%emt 0:00:00]} 6. Bb3 {
[%emt 0:00:00]} Be7 {[%emt 0:00:00]} 7. d3 {[%emt 0:00:00]} d6 {[%emt 0:00:00]}
8. a4 {[%emt 0:00:00]} Na5 {[%emt 0:00:00]} 9. Ba2 {[%emt 0:00:00]} b4 {
[%emt 0:00:00]} 10. Ne2 {[%emt 0:00:00]} Rb8 {[%emt 0:00:00]} 11. c3 {[%emt 0:
00:00]} b3 {[%emt 0:00:00]} 12. Bb1 {[%emt 0:00:00]} c5 {[%emt 0:00:00]} 13. h3
{[%emt 0:00:00]} O-O {[%emt 0:00:00]} 14. c4 {[%emt 0:00:00]} Ne8 {[%emt 0:00:
00]} 15. Bd2 {[%emt 0:00:00]} g6 {[%emt 0:00:00]} 16. Nc3 {[%emt 0:00:00]} f5 {
[%emt 0:00:00]} 17. O-O {[%emt 0:00:00]} f4 {[%emt 0:00:00]} 18. Nd5 {[%emt 0:
00:00]} Rf7 {[%emt 0:00:00]} 19. Ra3 {[%emt 0:00:00]} Bf8 {[%emt 0:00:00]} 20.
Bxa5 {[%emt 0:00:00]} Qxa5 {[%emt 0:00:00]} 21. Rxb3 {[%emt 0:00:00]} Rxb3 {
[%emt 0:00:00]} 22. Qxb3 {[%emt 0:00:00]} Rb7 {[%emt 0:00:00]} 23. Qa2 {
[%emt 0:00:00]} Qd8 {[%emt 0:00:00]} 24. d4 {[%emt 0:00:00]} exd4 {[%emt 0:00:
00]} 25. Re1 {[%emt 0:00:00]} Ng7 {[%emt 0:00:00]} 26. e5 {[%emt 0:00:00]} Ne6
{[%emt 0:00:00]} 27. b3 {[%emt 0:00:00]} dxe5 {[%emt 0:00:00]} 28. Nxe5 {
[%emt 0:00:00]} Bd6 {[%emt 0:00:00]} 29. Nf3 {[%emt 0:00:00]} Nc7 {[%emt 0:00:
00]} 30. Be4 {[%emt 0:00:00]} Kg7 {[%emt 0:00:00]} 31. Qd2 {[%emt 0:00:00]}
Nxd5 {[%emt 0:00:00]} 32. Bxd5 {[%emt 0:00:00]} Re7 {[%emt 0:00:00]} 33. Rxe7+
{[%emt 0:00:00]} Qxe7 {[%emt 0:00:00]} 34. a5 {[%emt 0:00:00]} Bf5 {[%emt 0:00:
00]} 35. b4 {[%emt 0:00:00]} cxb4 {[%emt 0:00:00]} 36. Nxd4 {[%emt 0:00:00]}
Qe5 {[%emt 0:00:00]} 37. Nxf5+ {[%emt 0:00:00]} gxf5 {[%emt 0:00:00]} 38. c5 {
[%emt 0:00:00]} Bxc5 {[%emt 0:00:00]} 39. Bc4 {[%emt 0:00:00]} Kg6 {[%emt 0:00:
00]} 40. Qe2 {[%emt 0:00:00]} Qxe2 {[%emt 0:01:04]} 41. Bxe2 {[%emt 0:00:00]}
b3 {[%emt 0:01:15]} 42. Bxa6 {[%emt 0:00:00]} Bb4 {[%emt 0:00:00]} 43. Kf1 {
[%emt 0:00:00]} f3 {[%emt 0:00:00]} 44. gxf3 {[%emt 0:00:00]} Bxa5 {[%emt 0:00:
00]} 45. Bc4 {[%emt 0:00:00]} b2 {[%emt 0:00:00]} 46. Bd3 {[%emt 0:00:00]} Kg5
{[%emt 0:00:00]} 47. Bb1 {[%emt 0:00:00]} Kf4 {[%emt 0:00:12]} 1/2-1/2

[Event "Gibraltar Masters 18th"]
[Site "Gibraltar"]
[Date "2020.01.25"]
[Round "5.10"]
[White "Le, Quang Liem"]
[Black "Maze, Sebastien"]
[Result "1/2-1/2"]
[ECO "E80"]
[WhiteElo "2713"]
[BlackElo "2550"]
[PlyCount "108"]
[EventDate "2020.01.21"]
[EventType "swiss"]
[EventRounds "10"]
[EventCountry "GGB"]
[SourceTitle "BritBase"]
[Source "John Saunders"]
[SourceDate "2021.06.05"]
[SourceVersion "1"]
[SourceVersionDate "2021.06.05"]
[SourceQuality "1"]
[TimeControl "40/100:0"]
[WhiteClock "1:01:39"]
[BlackClock "0:19:23"]

1. d4 {[%emt 0:00:00]} Nf6 {[%emt 0:00:00]} 2. c4 {[%emt 0:00:00]} g6 {[%emt 0:
00:00]} 3. Nc3 {[%emt 0:00:00]} Bg7 {[%emt 0:00:00]} 4. e4 {[%emt 0:00:00]} d6
{[%emt 0:00:00]} 5. Nge2 {[%emt 0:00:00]} c6 {[%emt 0:00:00]} 6. f3 {[%emt 0:
00:00]} a6 {[%emt 0:00:00]} 7. a4 {[%emt 0:00:00]} a5 {[%emt 0:00:00]} 8. Be3 {
[%emt 0:00:00]} Na6 {[%emt 0:00:00]} 9. Qd2 {[%emt 0:00:00]} e5 {[%emt 0:00:00]
} 10. Rd1 {[%emt 0:00:00]} Nd7 {[%emt 0:00:00]} 11. d5 {[%emt 0:00:00]} Nb4 {
[%emt 0:00:00]} 12. Nc1 {[%emt 0:00:00]} O-O {[%emt 0:00:00]} 13. dxc6 {
[%emt 0:00:00]} bxc6 {[%emt 0:00:00]} 14. c5 {[%emt 0:00:00]} dxc5 {[%emt 0:00:
00]} 15. Bxc5 {[%emt 0:00:00]} Re8 {[%emt 0:00:00]} 16. N3a2 {[%emt 0:00:00]}
Qf6 {[%emt 0:00:00]} 17. Be3 {[%emt 0:00:00]} Bf8 {[%emt 0:00:00]} 18. Bc4 {
[%emt 0:00:00]} Rb8 {[%emt 0:00:00]} 19. Qf2 {[%emt 0:00:00]} Qe7 {[%emt 0:00:
00]} 20. O-O {[%emt 0:00:00]} Nxa2 {[%emt 0:00:00]} 21. Nxa2 {[%emt 0:00:00]}
Nc5 {[%emt 0:00:00]} 22. Qc2 {[%emt 0:00:00]} Be6 {[%emt 0:00:00]} 23. Bxe6 {
[%emt 0:00:00]} Nxe6 {[%emt 0:00:00]} 24. Rf2 {[%emt 0:00:00]} Qb7 {[%emt 0:00:
00]} 25. Nc1 {[%emt 0:00:00]} c5 {[%emt 0:00:00]} 26. Rd5 {[%emt 0:00:00]} Nd4
{[%emt 0:00:00]} 27. Qc4 {[%emt 0:00:00]} Qb4 {[%emt 0:00:00]} 28. Qxb4 {
[%emt 0:00:00]} Rxb4 {[%emt 0:00:00]} 29. Nd3 {[%emt 0:00:00]} Rxa4 {[%emt 0:
21:19]} 30. Nxe5 {[%emt 0:00:00]} Bg7 {[%emt 0:00:00]} 31. Nd7 {[%emt 0:00:00]}
Ne6 {[%emt 0:00:00]} 32. Rc2 {[%emt 0:00:00]} Ra2 {[%emt 0:00:00]} 33. Nxc5 {
[%emt 0:00:00]} Nxc5 {[%emt 0:00:00]} 34. Rdxc5 {[%emt 0:00:00]} Rxb2 {[%emt 0:
00:00]} 35. Rxb2 {[%emt 0:00:00]} Bxb2 {[%emt 0:00:00]} 36. Rxa5 {[%emt 0:00:
00]} f5 {[%emt 0:00:00]} 37. Ra4 {[%emt 0:00:00]} fxe4 {[%emt 0:00:00]} 38.
fxe4 {[%emt 0:00:00]} Be5 {[%emt 0:00:00]} 39. g3 {[%emt 0:00:00]} Kf7 {
[%emt 0:00:00]} 40. Kg2 {[%emt 0:00:00]} Rc8 {[%emt 0:00:00]} 41. Bf4 {[%emt 0:
00:00]} Rc2+ {[%emt 0:00:00]} 42. Kh3 {[%emt 0:00:00]} Bf6 {[%emt 0:00:00]} 43.
Ra7+ {[%emt 0:00:00]} Ke6 {[%emt 0:00:00]} 44. Rxh7 {[%emt 0:00:00]} Re2 {
[%emt 0:00:00]} 45. Kg4 {[%emt 0:00:00]} Rxe4 {[%emt 0:00:00]} 46. h4 {[%emt 0:
00:00]} Ra4 {[%emt 0:00:00]} 47. Rb7 {[%emt 0:00:00]} Ra5 {[%emt 0:00:00]} 48.
Be3 {[%emt 0:00:00]} Ra4+ {[%emt 0:00:00]} 49. Kh3 {[%emt 0:00:00]} Bxh4 {
[%emt 0:00:00]} 50. Rg7 {[%emt 0:00:00]} Kf6 {[%emt 0:00:00]} 51. Rc7 {[%emt 0:
00:00]} Ke6 {[%emt 0:00:00]} 52. Rg7 {[%emt 0:00:00]} Kf6 {[%emt 0:00:00]} 53.
Rb7 {[%emt 0:00:00]} Ke6 {[%emt 0:00:00]} 54. Rg7 {[%emt 0:00:31]} Ke5 {
[%emt 0:00:06]} 1/2-1/2

[Event "Gibraltar Masters 18th"]
[Site "Gibraltar"]
[Date "2020.01.25"]
[Round "5.11"]
[White "Lalith, Babu M R"]
[Black "Alekseenko, Kirill"]
[Result "1/2-1/2"]
[ECO "E46"]
[WhiteElo "2558"]
[BlackElo "2704"]
[PlyCount "60"]
[EventDate "2020.01.21"]
[EventType "swiss"]
[EventRounds "10"]
[EventCountry "GGB"]
[SourceTitle "BritBase"]
[Source "John Saunders"]
[SourceDate "2021.06.05"]
[SourceVersion "1"]
[SourceVersionDate "2021.06.05"]
[SourceQuality "1"]
[TimeControl "40/100:0"]
[WhiteClock "0:44:30"]
[BlackClock "0:40:46"]

1. d4 {[%emt 0:00:00]} Nf6 {[%emt 0:00:00]} 2. c4 {[%emt 0:00:00]} e6 {[%emt 0:
00:00]} 3. Nc3 {[%emt 0:00:00]} Bb4 {[%emt 0:00:00]} 4. e3 {[%emt 0:00:00]} O-O
{[%emt 0:00:00]} 5. Bd2 {[%emt 0:00:00]} d6 {[%emt 0:00:00]} 6. a3 {[%emt 0:00:
00]} Bxc3 {[%emt 0:00:00]} 7. Bxc3 {[%emt 0:00:00]} Ne4 {[%emt 0:00:00]} 8. Qc2
{[%emt 0:00:00]} Nxc3 {[%emt 0:00:00]} 9. Qxc3 {[%emt 0:00:00]} Qe7 {[%emt 0:
00:00]} 10. Nf3 {[%emt 0:00:00]} b6 {[%emt 0:00:00]} 11. Be2 {[%emt 0:00:00]}
Bb7 {[%emt 0:00:00]} 12. O-O {[%emt 0:00:00]} Nd7 {[%emt 0:00:00]} 13. Rac1 {
[%emt 0:00:00]} a5 {[%emt 0:00:00]} 14. b4 {[%emt 0:00:00]} Nf6 {[%emt 0:00:00]
} 15. Qb2 {[%emt 0:00:00]} Ne4 {[%emt 0:00:00]} 16. c5 {[%emt 0:00:00]} Bd5 {
[%emt 0:00:00]} 17. cxb6 {[%emt 0:00:00]} cxb6 {[%emt 0:00:00]} 18. Bc4 {
[%emt 0:00:00]} Qb7 {[%emt 0:00:00]} 19. bxa5 {[%emt 0:00:00]} Rxa5 {[%emt 0:
00:00]} 20. Bxd5 {[%emt 0:00:00]} Qxd5 {[%emt 0:00:00]} 21. Qxb6 {[%emt 0:00:
00]} Rxa3 {[%emt 0:00:00]} 22. Rc2 {[%emt 0:00:00]} h6 {[%emt 0:00:00]} 23. Nd2
{[%emt 0:00:00]} Nxd2 {[%emt 0:00:00]} 24. Rxd2 {[%emt 0:00:00]} Rc8 {[%emt 0:
00:00]} 25. h3 {[%emt 0:00:00]} Rac3 {[%emt 0:00:00]} 26. Rb2 {[%emt 0:00:00]}
R3c6 {[%emt 0:00:00]} 27. Qb7 {[%emt 0:00:00]} Qa5 {[%emt 0:00:00]} 28. Qd7 {
[%emt 0:00:00]} d5 {[%emt 0:00:00]} 29. Rb7 {[%emt 0:00:00]} R6c7 {[%emt 0:00:
00]} 30. Rxc7 {[%emt 0:00:00]} Qxc7 {[%emt 0:00:00]} 1/2-1/2

[Event "Gibraltar Masters 18th"]
[Site "Gibraltar"]
[Date "2020.01.25"]
[Round "5.12"]
[White "Adams, Michael"]
[Black "Ibarra Jerez, Jose Carlos"]
[Result "1/2-1/2"]
[ECO "B40"]
[WhiteElo "2694"]
[BlackElo "2548"]
[PlyCount "60"]
[EventDate "2020.01.21"]
[EventType "swiss"]
[EventRounds "10"]
[EventCountry "GGB"]
[SourceTitle "BritBase"]
[Source "John Saunders"]
[SourceDate "2021.06.05"]
[SourceVersion "1"]
[SourceVersionDate "2021.06.05"]
[SourceQuality "1"]
[TimeControl "40/100:0"]
[WhiteClock "0:39:16"]
[BlackClock "0:20:49"]

1. e4 {[%emt 0:00:00]} c5 {[%emt 0:00:00]} 2. Nf3 {[%emt 0:00:00]} e6 {[%emt 0:
00:00]} 3. g3 {[%emt 0:00:00]} d5 {[%emt 0:00:00]} 4. exd5 {[%emt 0:00:00]}
exd5 {[%emt 0:00:00]} 5. d4 {[%emt 0:00:00]} Nf6 {[%emt 0:00:00]} 6. Bg2 {
[%emt 0:00:00]} Be7 {[%emt 0:00:00]} 7. O-O {[%emt 0:00:00]} O-O {[%emt 0:00:
00]} 8. Be3 {[%emt 0:00:00]} cxd4 {[%emt 0:00:00]} 9. Nxd4 {[%emt 0:00:00]} Bg4
{[%emt 0:00:00]} 10. Qd2 {[%emt 0:00:00]} Qd7 {[%emt 0:00:00]} 11. Nc3 {
[%emt 0:00:00]} h6 {[%emt 0:00:00]} 12. Nce2 {[%emt 0:00:00]} Bh3 {[%emt 0:00:
00]} 13. Bxh3 {[%emt 0:00:00]} Qxh3 {[%emt 0:00:00]} 14. Nf4 {[%emt 0:00:00]}
Qd7 {[%emt 0:00:00]} 15. f3 {[%emt 0:00:00]} Nc6 {[%emt 0:00:00]} 16. Nd3 {
[%emt 0:00:00]} Rfe8 {[%emt 0:00:00]} 17. Rfe1 {[%emt 0:00:00]} Nh7 {[%emt 0:
00:00]} 18. h4 {[%emt 0:00:00]} Bf6 {[%emt 0:00:00]} 19. c3 {[%emt 0:00:00]}
Bxd4 {[%emt 0:00:00]} 20. Bxd4 {[%emt 0:00:00]} Nxd4 {[%emt 0:00:00]} 21. cxd4
{[%emt 0:00:00]} Nf8 {[%emt 0:00:00]} 22. Nf4 {[%emt 0:00:00]} Ne6 {[%emt 0:00:
00]} 23. Nxe6 {[%emt 0:00:00]} Rxe6 {[%emt 0:00:00]} 24. Rxe6 {[%emt 0:00:00]}
Qxe6 {[%emt 0:00:00]} 25. Re1 {[%emt 0:00:00]} Qd7 {[%emt 0:00:00]} 26. Kg2 {
[%emt 0:00:00]} Re8 {[%emt 0:00:00]} 27. b3 {[%emt 0:00:00]} Re6 {[%emt 0:00:
00]} 28. h5 {[%emt 0:00:00]} Rxe1 {[%emt 0:00:00]} 29. Qxe1 {[%emt 0:00:00]} f6
{[%emt 0:00:00]} 30. g4 {[%emt 0:00:00]} Kf7 {[%emt 0:00:00]} 1/2-1/2

[Event "Gibraltar Masters 18th"]
[Site "Gibraltar"]
[Date "2020.01.25"]
[Round "5.13"]
[White "Jones, Gawain C B"]
[Black "Gukesh, Dommaraju"]
[Result "1-0"]
[ECO "B31"]
[WhiteElo "2679"]
[BlackElo "2542"]
[PlyCount "51"]
[EventDate "2020.01.21"]
[EventType "swiss"]
[EventRounds "10"]
[EventCountry "GGB"]
[SourceTitle "BritBase"]
[Source "John Saunders"]
[SourceDate "2021.06.05"]
[SourceVersion "1"]
[SourceVersionDate "2021.06.05"]
[SourceQuality "1"]
[TimeControl "40/100:0"]
[WhiteClock "0:31:15"]
[BlackClock "0:20:52"]

1. e4 {[%emt 0:00:00]} c5 {[%emt 0:00:00]} 2. Nf3 {[%emt 0:00:00]} Nc6 {
[%emt 0:00:00]} 3. Bb5 {[%emt 0:00:00]} g6 {[%emt 0:00:00]} 4. O-O {[%emt 0:00:
00]} Bg7 {[%emt 0:00:00]} 5. Re1 {[%emt 0:00:00]} e5 {[%emt 0:00:00]} 6. Bxc6 {
[%emt 0:00:00]} dxc6 {[%emt 0:00:00]} 7. d3 {[%emt 0:00:00]} Qe7 {[%emt 0:00:
00]} 8. a4 {[%emt 0:00:00]} Nf6 {[%emt 0:00:00]} 9. Bg5 {[%emt 0:00:00]} h6 {
[%emt 0:00:00]} 10. Be3 {[%emt 0:00:00]} c4 {[%emt 0:00:00]} 11. Na3 {[%emt 0:
00:00]} cxd3 {[%emt 0:00:00]} 12. cxd3 {[%emt 0:00:00]} Bg4 {[%emt 0:00:00]}
13. Rc1 {[%emt 0:00:00]} Nd7 {[%emt 0:00:00]} 14. Qb3 {[%emt 0:00:00]} Bxf3 {
[%emt 0:00:00]} 15. gxf3 {[%emt 0:00:00]} Nf8 {[%emt 0:00:00]} 16. Bc5 {
[%emt 0:00:00]} Qd7 {[%emt 0:00:00]} 17. Nc4 {[%emt 0:00:00]} Ne6 {[%emt 0:00:
00]} 18. Nd6+ {[%emt 0:00:00]} Ke7 {[%emt 0:00:00]} 19. Nxb7+ {[%emt 0:00:00]}
Kf6 {[%emt 0:00:00]} 20. d4 {[%emt 0:00:00]} exd4 {[%emt 0:00:00]} 21. e5+ {
[%emt 0:00:00]} Kg5 {[%emt 0:00:00]} 22. f4+ {[%emt 0:00:00]} Nxf4 {[%emt 0:00:
00]} 23. e6 {[%emt 0:00:00]} Nxe6 {[%emt 0:00:00]} 24. Qg3+ {[%emt 0:00:00]}
Kh5 {[%emt 0:00:00]} 25. Qf3+ {[%emt 0:00:00]} Kg5 {[%emt 0:00:00]} 26. h4+ {
[%emt 0:00:00]} 1-0